Cogmind - Beta 13 @@@ ROGUE MODE // 2024.07.11 @ 11:20:57 Player: ThatBishHoly Result: Destroyed by X-62 Marksman with Gauss Rifle Performance ------------- Evolutions (2) 1000 Regions Visited (6) 1200 Robots Destroyed (35) 175 Value Destroyed (1043) 1043 Prototype IDs (5) 100 Alien Tech Used (0) 0 Bonus (300) 300 TOTAL SCORE: 3818 Bonus ------- Aligned with FarCom 300 Cogmind --------- Core Integrity 0/550 Matter 261/300 Energy 24/100 System Corruption 0% Temperature Cool (0) Movement Core (350) Ox6 Location -8/Materials Parts ------- > --- POWER (1) -------- (None) > --- PROPULSION (4) --- (None) > --- UTILITY (4) ------ Large Storage Unit Experimental Sensor Array 0b10 Alert Chip > --- WEAPON (2) ------- (None) > --- INVENTORY (15) --- Advanced Visual Processing Unit Improved Targeting Computer Particle Charger System Shield Improved EM Shotgun Improved EM Shotgun Improved EM Shotgun Advanced Beam Rifle Faulty Advanced EMP Blaster Advanced EMP Blaster Katana Peak State ------------ > --- POWER ------------ Nuclear Core > --- PROPULSION ------- Hover Unit Hover Unit > --- UTILITY ---------- Large Storage Unit Compact Battery Sensor Array Insulated Plating > --- WEAPON ----------- Pulse Rifle Advanced Beam Rifle > --- INVENTORY -------- Advanced Visual Processing Unit Experimental Sensor Array 0b10 Alert Chip Improved Targeting Computer Particle Charger System Shield Improved EM Shotgun Improved EM Shotgun Improved EM Shotgun Improved EM Shotgun EMP Blaster Katana [Rating: 24] Favorites ----------- Power Deuterium Engine Engine Deuterium Engine Power Core Nuclear Core Propulsion Light Treads Treads Light Treads Hover Unit Hover Unit Utility Large Storage Unit Device Sensor Array Storage Large Storage Unit Processor Targeting Computer Protection Light Armor Plating Weapon EMP Blaster Energy Gun Improved EM Shotgun Ballistic Gun Heavy Assault Rifle Launcher EMP Blaster Slashing Weapon Katana Build | -11 -10 -9 -9 -9 -8 -8 ------- Run | Yrd Mat Mat Min Exi Min Mat Slots Evolved 4 | . . 2 . . . 2 Power . | . . . . . . . Propulsion 2 | . . . . . . 2 Utility 2 | . . 2 . . . . Weapon . | . . . . . . . Parts Attached 40 | 6 1 14 2 3 1 13 Power 5 | 1 . 2 . . . 2 Engine 4 | 1 . 2 . . . 1 Core 1 | . . . . . . 1 Reactor . | . . . . . . . Propulsion 6 | 2 . 1 1 . . 2 Treads 4 | 2 . 1 1 . . . Leg . | . . . . . . . Wheel . | . . . . . . . Hover 2 | . . . . . . 2 Flight . | . . . . . . . Utility 12 | 1 1 5 . 1 1 3 Device 4 | . 1 1 . . 1 1 Storage 3 | 1 . 1 . 1 . . Processor 2 | . . 1 . . . 1 Hackware . | . . . . . . . Protection 3 | . . 2 . . . 1 Artifact . | . . . . . . . Weapon 17 | 2 . 6 1 2 . 6 Energy Gun 9 | 2 . 3 1 . . 3 Energy Cannon . | . . . . . . . Ballistic Gun 2 | . . 2 . . . . Ballistic Cannon . | . . . . . . . Launcher 5 | . . 1 . 2 . 2 Special Weapon . | . . . . . . . Impact Weapon . | . . . . . . . Slashing Weapon 1 | . . . . . . 1 Piercing Weapon . | . . . . . . . Special Melee Weapon . | . . . . . . . Unidentified Prototypes 5 | . . 1 . . . 4 Parts Lost 19 | . . 5 1 . 3 10 Power 2 | . . . . . 1 1 Propulsion 4 | . . 1 . . 1 2 Utility 7 | . . 2 . . 1 4 Weapon 6 | . . 2 1 . . 3 Highest Loss Streak 6 | . . 2 1 . 2 6 To Critical Strikes . | . . . . . . . Average Slot Usage (%) 89 | . 95 91 93 100 87 65 Engine 9 | . 14 11 11 11 8 2 Treads 16 | . 28 18 16 22 12 4 Device 16 | . 9 22 22 11 20 12 Storage 18 | . 14 11 11 21 22 17 Protection 5 | . . 4 11 11 1 2 Energy Gun 7 | . 28 12 22 . . 11 Ballistic Gun 1 | . . 7 . . . . Launcher 13 | . . 2 . 21 22 5 Naked Turns . | . . . . . . . Heaviest Build 43 | 14 16 43 41 42 42 39 Greatest Support 40 | 40 40 40 40 40 40 20 Greatest Overweight (x) 12 | 1 . 2 2 1 2 12 Average Overweight (x) 1 | . . . 1 1 1 2 Largest Inventory Capacity 15 | 8 8 15 15 15 15 15 Average Capacity 14 | 7 8 14 15 15 15 15 Most Carried 15 | 5 4 14 14 15 14 15 Average Carried 11 | 1 3 5 13 13 13 12 Final Capacity 15 | 8 8 15 15 15 15 15 Final Carried 14 | . 4 14 14 14 13 11 Class Distribution -------------------- 62% | Mutant 37% | Skirmisher Dominant Class ---------------- Mutant | -10/Materials Mutant | -9/Materials Mutant | -9/Mines Mutant | -9/Exiles Skirmisher | -8/Mines Skirmisher | -8/Materials Resources | -11 -10 -9 -9 -9 -8 -8 ----------- Run | Yrd Mat Mat Min Exi Min Mat Matter Collected 688 | 181 86 122 67 . 137 95 Remotely . | . . . . . . . Salvage Created 1145 | . 213 380 95 . 169 288 Parts 68 | . 12 24 3 . 7 22 Haulers Intercepted 1 | . . 1 . . . . Recyclers Shooed 1 | . 1 . . . . . Parts Field Recycled . | . . . . . . . Retrieved Matter . | . . . . . . . Parts Self-Destructed . | . . . . . . . Prevented . | . . . . . . . Kills | -11 -10 -9 -9 -9 -8 -8 ------- Run | Yrd Mat Mat Min Exi Min Mat Combat Hostiles Destroyed 32 | . 5 11 2 . 3 11 Guns 17 | . 4 7 1 . . 5 AOE 13 | . . 4 1 . 3 5 Classes Destroyed 8 | . 2 3 1 . 2 . Worker 1 | . . . . . 1 . Hauler 1 | . . 1 . . . . Operator 1 | . 1 . . . . . Swarmer 11 | . . 4 . . . 7 Grunt 11 | . 5 2 1 . 2 1 Brawler 1 | . . . 1 . . . Sentry 8 | . . 5 . . . 3 Hunter 1 | . . . . . 1 . Best Kill Streak 5 | . 2 5 2 . 1 5 Combat Bots Only 5 | . 2 5 2 . 1 5 Max Kills in Single Turn 2 | . 1 2 1 . 1 2 Gunslinging . | . . . . . . . Exploded 2 | . . 2 1 . 1 2 Melee . | . . . . . . . Uniques/NPCs Destroyed . | . . . . . . . Combat | -11 -10 -9 -9 -9 -8 -8 -------- Run | Yrd Mat Mat Min Exi Min Mat Hostile Shots Fired 290 | . 25 102 4 . 11 148 Missed 81 | . 10 25 1 . 1 44 Damage Taken 3074 | . 166 1014 100 . 228 1566 Core 819 | . 31 127 11 . 94 556 Absorbed by Shields . | . . . . . . . Core Remaining (%) 76 | 100 87 . . . 42 . Volleys Fired 93 | . 21 31 4 . 6 31 Largest 2 | . 2 2 2 . 2 2 Hottest 124 | . 90 90 90 . 66 124 Shots Fired 167 | . 41 52 6 . 12 56 Gun 138 | . 41 45 6 . . 46 Cannon . | . . . . . . . Launcher 29 | . . 7 . . 12 10 Special . | . . . . . . . Kinetic 20 | . . 20 . . . . Thermal 75 | . 20 9 . . . 46 Explosive 7 | . . 7 . . . . Electromagnetic 65 | . 21 16 6 . 12 10 Robot Hit Streak 12 | . 12 9 4 . 3 6 Robot Miss Streak 3 | . 3 3 3 . 1 3 Penetration Max . | . . . . . . . Secondary Targets 1 | . 1 . . . . . Max Gunslinging Chain 1 | . 1 . . . . . Shots Hit Robots 104 | . 31 40 4 . 3 26 Core Hits 62 | . 9 26 4 . 7 16 Critical Kills . | . . . . . . . Critical Parts Destroyed 1 | . . 1 . . . . Critical Strikes 8 | . 2 3 . . . 3 Burn 7 | . 2 2 . . . 3 Destroy 1 | . . 1 . . . . Melee Attacks . | . . . . . . . Impact . | . . . . . . . Slashing . | . . . . . . . Piercing . | . . . . . . . Sneak Attacks . | . . . . . . . Combat Hostiles . | . . . . . . . Follow-up Attacks . | . . . . . . . Damage Inflicted 2498 | . 451 732 168 . 219 928 Guns 1400 | . 408 464 65 . . 463 Cannons . | . . . . . . . Explosions 1051 | . 37 259 103 . 190 462 Melee . | . . . . . . . Ramming 47 | . 6 9 . . 29 3 Kinetic 229 | . . 229 . . . . Thermal 944 | . 199 100 103 . 42 500 Explosive 259 | . . 259 . . . . Electromagnetic 1019 | . 246 135 65 . 148 425 Impact . | . . . . . . . Slashing . | . . . . . . . Piercing . | . . . . . . . Highest Corruption 1 | . . . . . 1 . Average Corruption 1 | . . . . . 1 . Corruption Purged . | . . . . . . . Corruption Blocked . | . . . . . . . Effects 1 | . . . . . 1 . Matter Fused 1 | . . . . . 1 . Overload Shots . | . . . . . . . Overflow Damage 71 | . 3 . 19 . 16 33 Projectiles . | . . . . . . . Explosions 71 | . 3 . 19 . 16 33 Melee . | . . . . . . . Knockbacks . | . . . . . . . Impact . | . . . . . . . Kinetic . | . . . . . . . Secondary . | . . . . . . . Self-Inflicted Damage 405 | . . 162 67 . 72 104 Shots 18 | . . 5 2 . 5 6 Rammed 11 | . 1 1 . . 7 2 Targets Rammed 12 | . 1 1 . . 8 2 Kicked . | . . . . . . . Crushed 1 | . . . . . 1 . Highest Temperature 502 | . 198 108 101 . 36 502 Average Temperature 104 | . 68 43 59 . 20 168 Received Heat Transfer 723 | . 90 246 18 . 108 261 Effects 8 | . . . . . . 8 Interference 5 | . . . . . . 5 Short Circuit 1 | . . . . . . 1 Damage (major) 2 | . . . . . . 2 Siege Activations . | . . . . . . . Robots Corrupted . | . . . . . . . Combat Hostiles . | . . . . . . . Parts Fried 1 | . 1 . . . . . Impact Corruptions . | . . . . . . . Robots Melted 2 | . 1 . . . . 1 Combat Hostiles 2 | . 1 . . . . 1 Parts Melted 1 | . 1 . . . . . Heat Transferred 2520 | . 679 444 150 . 50 1197 Parts Sabotaged . | . . . . . . . Parts Stolen . | . . . . . . . Parts Stripped . | . . . . . . . Power Chain Reactions 7 | . 1 . 2 . 1 3 Alert | -11 -10 -9 -9 -9 -8 -8 ------- Run | Yrd Mat Mat Min Exi Min Mat Peak Influence 295 | . 199 295 76 . 45 238 Initial 27 | . . 12 27 . . 1 Average 77 | . 89 146 53 . 6 144 Maximum Alert Level 1 | . . 1 . . . 1 Low Security (%) 94 | 100 100 82 100 . 100 91 Level 1 5 | . . 17 . . . 8 Level 2 . | . . . . . . . Level 3 . | . . . . . . . Level 4 . | . . . . . . . Level 5 . | . . . . . . . High Security . | . . . . . . . Max Security . | . . . . . . . Squads Dispatched 7 | . 3 1 . . 1 2 Investigation 2 | . 1 1 . . . . Extermination . | . . . . . . . Reinforcement 5 | . 2 . . . 1 2 Assault . | . . . . . . . Garrison . | . . . . . . . Intercept . | . . . . . . . Searches Triggered . | . . . . . . . Construction Impeded 1 | . . . . . 1 . Haulers Reinforced . | . . . . . . . Active Scanning Responses . | . . . . . . . Cargo Convoy Interrupts . | . . . . . . . Stealth | -11 -10 -9 -9 -9 -8 -8 --------- Run | Yrd Mat Mat Min Exi Min Mat Distress Signals 10 | . 1 2 . . . 7 Communications Jammed . | . . . . . . . Distress Signals . | . . . . . . . Times Spotted 69 | . 15 25 2 . 3 24 Peak Tracking Total 7 | . 4 7 1 . 2 6 Tactical Retreats 16 | . 3 5 . . . 8 Traps | -11 -10 -9 -9 -9 -8 -8 ------- Run | Yrd Mat Mat Min Exi Min Mat Traps Triggered 2 | . 1 1 . . . . Indirectly . | . . . . . . . Trap Hack Attempts . | . . . . . . . Triggered . | . . . . . . . Disarmed . | . . . . . . . Reprogrammed . | . . . . . . . Reused . | . . . . . . . Traps Extracted . | . . . . . . . Installed . | . . . . . . . Triggered . | . . . . . . . Machines | -11 -10 -9 -9 -9 -8 -8 ---------- Run | Yrd Mat Mat Min Exi Min Mat Machines Disabled 5 | . 1 1 . . 1 2 Max in Single Turn 2 | . 1 1 . . 1 2 Machines Repaired . | . . . . . . . Machines Dismantled . | . . . . . . . Machines Sabotaged . | . . . . . . . Overloaded Fab Kills . | . . . . . . . Hacking | -11 -10 -9 -9 -9 -8 -8 --------- Run | Yrd Mat Mat Min Exi Min Mat Machines Accessed 3 | . 1 2 . . . . Terminals 3 | . 1 2 . . . . Fabricators . | . . . . . . . Repair Stations . | . . . . . . . Recycling Units . | . . . . . . . Scanalyzers . | . . . . . . . Garrison Access . | . . . . . . . Total Hacks 9 | . 4 5 . . . . Successful 5 | . 2 3 . . . . Failed 4 | . 2 2 . . . . Catastrophic 1 | . 1 . . . . . Database Lockouts . | . . . . . . . Manual 2 | . 1 . . 1 . . Terminals 9 | . 4 5 . . . . Fabricators . | . . . . . . . Repair Stations . | . . . . . . . Recycling Units . | . . . . . . . Scanalyzers . | . . . . . . . Garrison Access . | . . . . . . . Terminal Hacks 5 | . 2 3 . . . . Record 2 | . 2 . . . . . Alert Level 1 | . . 1 . . . . Hauler Manifests 1 | . . 1 . . . . Zone Layout 1 | . . 1 . . . . Fabricator Hacks . | . . . . . . . Repair Station Hacks . | . . . . . . . Recycling Unit Hacks . | . . . . . . . Scanalyzer . | . . . . . . . Garrison Access Hacks . | . . . . . . . Unauthorized Hacks . | . . . . . . . Terminals . | . . . . . . . Fabricators . | . . . . . . . Repair Stations . | . . . . . . . Recycling Units . | . . . . . . . Scanalyzers . | . . . . . . . Garrison Access . | . . . . . . . Data Cores Recovered . | . . . . . . . Used . | . . . . . . . Hacking Detections 2 | . 1 1 . . . . Full Trace Events . | . . . . . . . Feedback Events . | . . . . . . . Feedback Blocked . | . . . . . . . Robot Schematics Acquired . | . . . . . . . Robots Built . | . . . . . . . Authchips . | . . . . . . . Time . | . . . . . . . Total Robot Build Rating . | . . . . . . . Part Schematics Acquired . | . . . . . . . Parts Built . | . . . . . . . Authchips . | . . . . . . . Time . | . . . . . . . Total Part Build Rating . | . . . . . . . Parts Repaired . | . . . . . . . Time . | . . . . . . . Parts Recycled . | . . . . . . . Recycled Matter . | . . . . . . . Retrieved Matter . | . . . . . . . Retrieved Components . | . . . . . . . Parts Scanalyzed . | . . . . . . . Part Schematics Acquired . | . . . . . . . Parts Damaged . | . . . . . . . Bothacking | -11 -10 -9 -9 -9 -8 -8 ------------ Run | Yrd Mat Mat Min Exi Min Mat Used RIF Installer . | . . . . . . . Robots Hacked . | . . . . . . . Non-combat . | . . . . . . . Combat . | . . . . . . . Robot Hacks Applied . | . . . . . . . Relay Couplers Released . | . . . . . . . Fabnet Peak Effective % . | . . . . . . . Robots Rewired . | . . . . . . . Allies Hacked . | . . . . . . . Hacks Repelled . | . . . . . . . Allies | -11 -10 -9 -9 -9 -8 -8 -------- Run | Yrd Mat Mat Min Exi Min Mat Total Allies . | . . . . . . . Largest Group . | . . . . . . . Highest-Rated Group . | . . . . . . . Highest-Rated Ally . | . . . . . . . Total Orders . | . . . . . . . Ally Attacks . | . . . . . . . Total Damage . | . . . . . . . Kills . | . . . . . . . Allies Corrupted . | . . . . . . . Allies Melted . | . . . . . . . Intel | -11 -10 -9 -9 -9 -8 -8 ------- Run | Yrd Mat Mat Min Exi Min Mat Robot Analysis Total . | . . . . . . . Derelict Logs Recovered . | . . . . . . . Drone Launches . | . . . . . . . Drone Recoveries . | . . . . . . . Exploration | -11 -10 -9 -9 -9 -8 -8 ------------- Run | Yrd Mat Mat Min Exi Min Mat Turns Passed 5611 | 63 484 821 389 1587 1460 807 Spaces Moved 2027 | 50 223 324 127 653 432 218 Core 50 | 29 . . . . . 21 Treads 1899 | 21 223 324 127 653 432 119 Legs . | . . . . . . . Wheels . | . . . . . . . Hover 78 | . . . . . . 78 Flight . | . . . . . . . Fastest Speed 50 | 50 160 160 240 240 240 176 Average Speed 238 | 106 160 204 275 240 284 285 Slowest Speed 650 | 160 160 320 320 240 320 650 Overloaded Moves . | . . . . . . . Propulsion Burnouts . | . . . . . . . Robots Hopped . | . . . . . . . Cave-ins Triggered . | . . . . . . . Exploration Rate (%) 36 | 3 31 27 19 91 66 20 Regions Visited 6 Branch Regions 3 Pre-discovered Areas . | . . . . . . . Known Exits Taken . | . . . . . . . Unknown Exits Taken 6 | 1 1 1 1 1 1 . Scrap Searched . | . . . . . . . Spaces Dug . | . . . . . . . Terrain Destroyed 105 | . 4 73 9 . 6 13 Melee . | . . . . . . . Projectile . | . . . . . . . AOE 105 | . 4 73 9 . 6 13 Terrain Rammed . | . . . . . . . Walls Destroyed . | . . . . . . . Machines Disabled . | . . . . . . . Actions | -11 -10 -9 -9 -9 -8 -8 --------- Run | Yrd Mat Mat Min Exi Min Mat Total 2618 | 60 309 430 161 674 640 344 Wait 375 | . 59 29 27 . 194 66 Move 2021 | 49 222 323 126 652 431 218 Hop . | . . . . . . . Pick Up 45 | 5 5 24 2 1 . 8 Fast Attach 2 | 1 . . . . . 1 Attach 23 | 5 1 6 2 1 1 7 Detach 2 | . . . . 1 . 1 Swap 15 | . . 8 . 2 . 5 Drop 14 | . . 8 . 1 . 5 Fire 93 | . 21 31 4 . 6 31 Melee . | . . . . . . . Ram 2 | . . . . . . 2 Kick . | . . . . . . . Crush 10 | . 1 1 . . 8 . Escape Stasis . | . . . . . . . Rewire 16 | . . . . 16 . . Trap . | . . . . . . . Miscellaneous . | . . . . . . . Route ------- -11/Scrapyard -10/Materials -9/Materials (discovered 2 exits: [*Mat] / [*Min]) -9/Mines -9/Exiles -8/Mines (discovered 2 exits: [*Mat x2]) -8/Materials History --------- Turn | Location | Event 10 | -11/Scrapyard | Discovered new exit (range 15) 64 | -11/Scrapyard | Entered Materials 302 | -10/Materials | Build established: Mutant 483 | -10/Materials | Discovered new exit (range 16) 548 | -10/Materials | Entered another Materials area 548 | -9/Materials | Evolved 2 slots: Utility x2 1051 | -9/Materials | Discovered new exit (range 12) 1317 | -9/Materials | Discovered new exit (range 11) 1369 | -9/Materials | Entered Mines 1605 | -9/Mines | Found a damaged Exp. Sensor Array with a note attached 1610 | -9/Mines | Found Prototype Device 1746 | -9/Mines | Deemed a non-threat by the Exiles lab entrance 1748 | -9/Mines | Discovered new exit (range 5) 1758 | -9/Mines | Entered Exiles 1847 | -9/Exiles | Met 8R-AWN 1903 | -9/Exiles | Met EX-HEX 2001 | -9/Exiles | Met EX-BIN 2051 | -9/Exiles | Aligned with FarCom system 2054 | -9/Exiles | Given EX-Vault access code 2140 | -9/Exiles | Opened EX-Vault 2157 | -9/Exiles | Found Prototype Processor 2211 | -9/Exiles | Warned to stay clear of 0b10 Research branches 2292 | -9/Exiles | Met EX-DEC 2517 | -9/Exiles | Visited The Gauntlet 3312 | -9/Exiles | Discovered new exit (range 11) 3345 | -9/Exiles | Left Exiles lab with 0b10 Alert Chip 3345 | -9/Exiles | Entered Mines 3554 | -8/Mines | Discovered new exit (range 7) 3656 | -8/Mines | Build established: Skirmisher 3691 | -8/Mines | Discovered new exit (range 14) 4471 | -8/Mines | Core integrity fell below 50% 4805 | -8/Mines | Entered Materials 4805 | -8/Materials | Evolved 2 slots: Propulsion x2 5574 | -8/Materials | Core integrity fell below 50% 5606 | -8/Materials | Core integrity fell below 20% 5606 | -8/Materials | Identified 0b10 Alert Chip 5607 | -8/Materials | Identified Exp. Sensor Array 5612 | -8/Materials | Destroyed by X-62 Marksman with Gauss Rifle Last Messages --------------- 05595_ U-05 Engineer builds a Wall. 05595_ R-06 Scavenger collects Med. Storage Unit. 05597_ Slug penetrates Wall. 05599_ U-05 Engineer builds a Wall. 05599_ Slug penetrates Wall. 05603_ U-05 Engineer builds a Wall. 05603_ Slug penetrates Wall. 05605_ Knocked back. 05606_ Slug penetrates Wall. 05606_ Identified 0b10 Alert Chip. 05606_ Penetrated by Slug. 05606_ Slug penetrates Wall. 05607_ Identified Exp. Sensor Array. 05609_ Slug penetrates Wall. 05609_ Penetrated by Slug. 05609_ Slug penetrates Wall. 05610_ U-05 Engineer builds a Wall. 05610_ Imp. EM Shotgun destroyed. 05610_ Knocked back. 05612_ Penetrated by Slug. Map ----- +----------------------------------------------------+ | | | | | ?????????????????????????????????????????????????? | | ?????????????????????????????????????????????????? | | ?????????????????????????????????????????????????? | | ?????????????????????????????????????????????????? | | ?????????????????????????????????????????????????? | | ?????????????????????????????+???????????????????? | | ????????????????????????????? ???????????????????? | | ????????????????????????????? ???????????????????? | | ?????????????????????? ????? ???????????????????? | | ??????????????????????# ???#/###????????????????? | | ??????????????????????# ???# #????????????????? | | ??????????????????????# ???#![ #????????????????? | | ??????????????????????+ ???#![ #????????????????? | | ??????????????????????# w??#][ #????????????????? | | ??????????????????????# ???# #????????????????? | | ??????????????????????? ???#! #????????????????? | | ???????????????????#####x####w =?????????????????? | | ???????????????????# #h#??###########?????? | | ???????????????????# #!#??# #?????? | | ?????????????????### [#%##?# #?????? | | ?????????????????# ; % !#%#### #?????? | | ???????????????????# H# #### """ +% ? | | ???????????????????# !#[ ! + """"" # | | ???????????????????# @ #h#### """"" #? ## | | ???????????????????# #%##?# """"" #?? #? | | ???????????????????# ! #=#??# """ #??? #? | | ???????????????????##########!#??###########????#? | | ????????????????????????????#=##############?????? | | ?????????????????????######## ????? | | ?????????????????????? # ????? | | ??????????????????????""""" # ????? | | ??????????????????# """"""" # ????? | | ??????????????????# """"""" + ????? | | ??????????????????# """"""" # ????? | | ??????????????????# """"""" ####+######+### ?????? | | ??????????????????# #???? ????? ???????? | | ??????????????????# #????? #?????????????? | | ?????????????############+###????????????????????? | | ?????????????# ! ## #??????????????????????? | | ?????????????# ## #??????????????????????? | | ?????????????# """ """ ## #??????????????????????? | | ?????????????# """ """ ## #??????????????????????? | | ?????????????# """ """ ## ##########?????????????? | | ?????????????# ##=#[= #?????????????? | | ?????????????# + + [ ##?????????????? | | ?????????????# * #%%#=* #??????????????? | | ?????????????#####+#####[[#########??????????????? | | ????????????????# #??????????????????????? | +----------------------------------------------------+ Best States ------------- Heat Dissipation 31 Energy Generation 14 Energy Capacity 475 Matter Stores 300 Matter Capacity 300 Sight Range 16 Robot Scan Range 20 Terrain Scan Density 10 ECM Strength 1 Armor Coverage 225 Resistance: EM 15 Evasion (%) 50 Targeting Accuracy 5 Recoil Reduction 2 Item Schematics ----------------- None Robot Schematics ------------------ None Fabricated ------------ Nothing Alien Tech Used ----------------- None Achievements -------------- None Challenges ------------ None Game ------ Seed PointyUtilityClaws Manual? 0 Play Time 00:37:12 Cumulative 52.1 hours Start 2024.07.11 @ 10:30:38 End 2024.07.11 @ 11:20:57 Sessions 1 Manual Loads 0 Difficulty Rogue Special Mode None Game No. 142 Rogue 142 Adventurer 0 Explorer 0 Win Type - Total 0 Types 0/0/0/0/0/0/0/0/0 Lore% 22 Gallery% 40 Achievement% 26 Wizard Run 0 Options --------- Layout 0 ASCII 0 Keyboard 0 Movement Arrows Keybinds 0 Fullscreen 1 Font 12/Smallcaps Map View 38x28 Zoom Use 81% Tactical HUD 1 Map Filters NONE Filters NONE Steam SD RUN: 9847e85f-0455-4721-8738-7ab51ee700da